bitfinex-derivatives/quotes_ETHF0:USTF0_20260213
["timestamp","ask_amount","ask_price","bid_price","bid_amount"]
[1770971505779,0.0045201,1946.1,1945.6,0.00405603]
[1770971506481,1.07178385,1946.1,1945.6,0.00405603]
[1770971508080,0.0045201,1946.1,1945.6,0.26122603]
[1770971508385,1.06560954,1946.4,1945.6,2.54460647]
[1770971509281,1.07104556,1946.4,1945.6,2.54460647]
[1770971509881,1.07104556,1946.4,1945.6,0.26122603]
[1770971514183,1.07104556,1946.4,1945.6,0.00405603]
[1770971518889,1.07104556,1946.4,1945.8,1.44974566]
[1770971519493,1.07104556,1946.4,1945.7,1.44974566]
[1770971519691,1.08249164,1946.3,1945.7,1.44974566]
[1770971519892,1.08249164,1946.2,1945.6,1.45380169]
[1770971521093,1.08249164,1946.2,1945.7,1.44974566]
[1770971521696,1.08249164,1946.2,1945.8,1.44974566]
[1770971521993,1.08167718,1946.4,1946.1,1.44974566]
[1770971522189,1.08167718,1946.4,1946.2,1.44974566]
[1770971522391,1.08167718,1946.4,1946.1,1.44974566]
[1770971522589,1.07624116,1946.4,1946.2,1.44974566]
[1770971522895,0.95000891,1946.9,1946.4,0.82630526]
[1770971523690,0.95440919,1946.9,1946.4,0.82630526]
[1770971527304,0.94618467,1947.0,1946.6,0.84531908]
[1770971528103,0.94618467,1947.0,1946.3,1.70586811]
[1770971528400,0.95192252,1947.0,1946.4,0.84462837]
[1770971528704,0.95192252,1947.0,1946.2,0.8354268]
[1770971530212,0.95192252,1947.0,1946.2,0.830202]
[1770971531208,0.95192252,1947.0,1946.3,0.82196773]
[1770971535613,0.95574676,1947.0,1946.3,0.82196773]
[1770971538314,0.95000891,1947.6,1946.6,0.79400525]
[1770971538811,0.95000891,1947.6,1946.7,0.78510957]
[1770971539211,0.00592222,1947.6,1947.1,0.78510957]
[1770971539417,0.00592222,1947.6,1947.1,0.78957892]
[1770971539708,0.2568,1948.5,1947.3,0.7772477]
[1770971539909,0.95000891,1948.4,1947.3,0.7772477]
[1770971540111,0.95000891,1948.4,1947.6,0.7772477]
[1770971540316,0.95000891,1949.2,1947.8,0.77818996]
[1770971540710,0.95540704,1949.2,1947.8,0.77818996]
[1770971542015,0.95000891,1949.0,1947.7,40.8]
[1770971542212,0.95000891,1948.8,1947.2,8.73430329]
[1770971542411,0.95000891,1948.8,1947.3,0.75130329]
[1770971542618,0.95000891,1948.8,1947.4,41.54265003]
[1770971542809,0.95000891,1948.4,1947.2,8.72565003]
[1770971543115,0.95000891,1948.4,1947.1,0.74711938]
[1770971543308,0.95000891,1948.4,1947.1,41.54711938]
[1770971543817,0.95000891,1948.4,1947.1,0.74711938]
[1770971544014,0.25687,1947.9,1946.7,0.74810731]
[1770971544210,0.95000891,1947.6,1946.5,0.75257666]
[1770971545217,0.95583451,1947.6,1946.5,0.75689124]
[1770971545613,0.95000891,1947.4,1946.5,0.00431458]
[1770971546018,0.95000891,1947.2,1946.0,41.53342735]
[1770971546321,0.95000891,1947.2,1946.1,0.73342735]
[1770971547021,0.95000891,1947.2,1946.1,0.73989234]
[1770971548121,0.95000891,1947.2,1946.1,0.73599782]
[1770971549127,0.95000891,1947.2,1946.2,2.2823151]
[1770971549325,0.95000891,1947.2,1946.3,0.72362649]
[1770971555326,0.82073489,1947.5,1946.6,0.67335425]
[1770971561724,0.82073489,1947.5,1946.7,0.25703]
[1770971561929,0.82073489,1947.5,1946.8,0.61636687]
[1770971565537,0.82073489,1947.5,1946.7,0.84353695]
[1770971565929,0.82073489,1947.5,1946.4,0.58650695]
[1770971566332,0.82073489,1947.3,1946.4,0.58650695]
[1770971567537,0.82073489,1947.3,1946.3,0.25708]
[1770971568440,0.82073489,1947.3,1946.2,0.57687106]
[1770971568737,0.82073489,1947.3,1946.1,0.00646499]
[1770971569132,7.42573489,1947.3,1946.1,0.00646499]
[1770971569337,0.82073489,1947.2,1946.1,0.58122456]
[1770971570848,0.82073489,1947.0,1946.1,0.00646499]
[1770971571745,0.82073489,1946.8,1945.7,0.54375735]
[1770971572242,0.82073489,1946.8,1945.5,0.80824425]
[1770971572541,0.82073489,1946.8,1945.6,0.55105425]
[1770971572732,0.82073489,1946.8,1945.7,0.54430301]
[1770971577545,0.82073489,1946.8,1945.9,0.50951691]
[1770971580751,0.82073489,1946.8,1945.7,0.4686953]
[1770971583849,0.82073489,1946.8,1945.8,0.43806729]
[1770971584651,0.82073489,1946.8,1946.0,0.43251995]
[1770971584844,0.73356667,1946.9,1946.4,0.43251995]
[1770971585049,0.25694,1947.4,1946.4,0.43251995]
[1770971585050,0.73356667,1947.1,1946.4,0.43251995]
[1770971587655,0.73356667,1947.5,1946.7,0.41967902]
[1770971589461,0.73356667,1947.5,1946.5,0.40878078]
[1770971589752,0.73356667,1947.5,1946.4,0.40878078]
[1770971593561,0.73356667,1947.5,1946.7,0.40366718]
[1770971598463,0.73356667,1947.5,1946.5,0.38442252]
[1770971598666,0.73356667,1947.5,1946.7,0.3784654]
[1770971598859,0.73356667,1947.5,1946.4,0.25706]
[1770971598860,0.73356667,1947.5,1946.9,0.3784654]
[1770971601059,0.0058256,1947.6,1946.9,0.3784654]
[1770971601264,0.73939227,1947.6,1947.1,0.36610925]
[1770971601458,0.73939227,1947.6,1947.1,0.3706526]
[1770971602161,0.73939227,1947.6,1947.2,2.28155869]
[1770971602162,0.0058256,1947.6,1947.2,2.28155869]
[1770971602365,0.0058256,1947.6,1947.3,0.34785285]
[1770971602761,0.73939227,1947.6,1947.1,0.00454335]
[1770971603066,0.73939227,1947.6,1946.6,0.34657892]
[1770971603967,0.73939227,1947.6,1946.6,0.35170272]
[1770971605266,0.73939227,1947.6,1946.7,2.28155869]
[1770971605466,0.73939227,1947.6,1946.8,0.34144631]
[1770971607365,0.73939227,1947.6,1947.0,0.33434229]
[1770971613077,0.73939227,1947.6,1946.9,0.31809274]
[1770971613274,0.73939227,1947.6,1946.7,2.6097798]
[1770971613469,0.73939227,1947.6,1946.8,0.32822111]
[1770971613677,0.73939227,1947.6,1946.7,0.32663339]
[1770971617177,0.73939227,1947.6,1946.6,0.32533084]
[1770971618383,0.61027822,1947.3,1946.6,0.0051238]
[1770971618977,0.61027822,1947.3,1946.6,0.3183031]
[1770971620987,0.61027822,1947.3,1946.6,0.0051238]
[1770971621383,0.61027822,1947.1,1946.3,0.31186281]
[1770971621887,0.61027822,1947.1,1946.0,0.31555543]
[1770971622388,0.61027822,1947.1,1946.0,0.32170987]
[1770971622584,0.61027822,1947.1,1946.1,0.31434937]
[1770971622786,0.61027822,1947.1,1946.3,0.31434937]
[1770971624985,0.61027822,1947.1,1946.2,2.28155869]
[1770971624986,0.61027822,1947.5,1946.6,0.30950005]
[1770971628595,0.61027822,1947.5,1946.5,0.30582048]
[1770971629597,0.61027822,1947.5,1946.3,0.30622052]
[1770971630199,0.61027822,1947.3,1946.3,0.30622052]
[1770971648012,0.61027822,1947.3,1946.4,0.29446948]
[1770971648309,0.61027822,1947.3,1946.3,0.29446948]
[1770971651112,0.61027822,1947.3,1946.4,0.29733266]
[1770971651414,0.61027822,1947.3,1946.5,0.29733266]
[1770971653315,0.61027822,1947.3,1946.4,0.30113752]
[1770971668824,0.61027822,1947.3,1946.7,0.34711547]
[1770971669332,0.61027822,1947.3,1946.9,0.34245641]
[1770971672138,0.0058256,1947.6,1946.8,1.4483706]
[1770971672139,0.62409362,1947.6,1947.2,1.81143938]
[1770971672431,0.62409362,1947.6,1947.2,1.4483706]
[1770971673230,0.61826802,1947.7,1947.3,0.36234837]
[1770971673626,0.61826802,1948.0,1947.4,2.03558528]
[1770971673833,0.61826802,1948.0,1947.5,0.58721468]
[1770971674226,0.62246578,1948.0,1947.5,0.59120095]
[1770971675533,0.62246578,1948.0,1947.5,0.00398627]
[1770971675933,0.62246578,1948.0,1947.5,0.61337579]
[1770971680037,0.62246578,1948.0,1947.5,0.00398627]
[1770971683440,0.62246578,1948.0,1947.5,0.61337579]
[1770971684736,0.62246578,1948.0,1947.5,0.00398627]
[1770971686246,0.62246578,1948.0,1947.5,0.61337579]
[1770971689655,0.62246578,1948.0,1947.6,0.60938952]
[1770971690254,0.58370756,1948.5,1947.8,0.60938952]
[1770971691256,0.58770573,1948.5,1947.8,0.60938952]
[1770971692559,0.58770573,1948.5,1947.7,0.60938952]
[1770971692855,0.58370756,1948.4,1947.5,0.61337579]
[1770971697163,0.58370756,1948.3,1947.5,0.61337579]
[1770971697365,0.58370756,1948.2,1947.5,0.00398627]
[1770971697662,0.58370756,1948.0,1947.5,0.00398627]
[1770971698062,0.58370756,1948.0,1946.9,0.60938952]
[1770971698262,0.58370756,1948.0,1947.1,0.60938952]
[1770971699169,0.58370756,1948.0,1947.1,0.61311095]
[1770971699666,0.58370756,1948.0,1947.3,0.60938952]
[1770971700672,0.57492618,1947.9,1947.1,0.61348919]
[1770971700970,0.57492618,1947.9,1947.1,0.00372143]
[1770971701566,0.57492618,1947.9,1947.2,0.60976776]
[1770971701774,0.57492618,1947.9,1947.3,0.60976776]
[1770971702068,0.57492618,1948.3,1947.5,0.60976776]
[1770971704174,0.57492618,1948.3,1947.7,0.60976776]
[1770971704874,0.57492618,1948.3,1947.8,0.60976776]
[1770971705675,0.57492618,1948.2,1947.7,0.60976776]
[1770971706172,0.57492618,1948.1,1947.6,0.60976776]
[1770971707174,0.57492618,1948.1,1947.4,0.60976776]
[1770971707378,0.57492618,1947.9,1947.4,0.60976776]
[1770971708479,0.57492618,1947.9,1947.4,2.05665281]
[1770971708670,0.57492618,1947.9,1947.4,0.60976776]
[1770971708870,0.57492618,1947.6,1947.1,0.61348919]
[1770971709174,0.57492618,1947.6,1947.2,2.05665281]
[1770971710482,0.57492618,1947.6,1947.2,0.60976776]
[1770971710774,0.25684,1948.2,1946.8,0.60976776]
[1770971710775,0.57492618,1947.4,1946.8,0.60976776]
[1770971711279,0.57492618,1947.4,1946.8,2.05665281]
[1770971711480,0.57492618,1947.4,1946.9,0.60976776]
[1770971711778,0.57492618,1947.4,1946.9,0.61550712]
[1770971712175,0.57492618,1947.4,1946.9,0.00573936]
[1770971712880,2.02181123,1947.4,1946.9,0.00573936]
[1770971713185,0.57492618,1947.3,1946.9,0.00573936]
[1770971713781,0.57492618,1947.3,1946.9,0.61550712]
[1770971714370,0.57492618,1947.3,1946.9,0.00573936]
[1770971714576,0.57492618,1947.3,1946.9,0.61550712]
[1770971715382,0.57492618,1947.5,1947.0,0.60976776]
[1770971715681,0.57492618,1947.5,1947.1,0.60976776]
[1770971715881,0.57492618,1947.5,1947.0,2.05665281]
[1770971716782,0.57492618,1947.5,1947.1,0.60976776]
[1770971717182,0.57492618,1947.4,1946.9,0.61550712]
[1770971717383,0.57492618,1947.3,1946.9,0.61550712]
[1770971717581,0.57492618,1947.2,1946.7,0.60976776]
[1770971718586,0.57492618,1947.2,1946.7,0.61391966]
[1770971721987,0.57492618,1947.1,1946.7,0.61391966]
[1770971722189,0.580416,1947.1,1946.7,0.61391966]
[1770971722693,0.57492618,1946.9,1946.7,0.0041519]
[1770971722885,0.57492618,1946.7,1946.3,0.60976776]
[1770971723185,0.57492618,1946.9,1946.4,0.60976776]
[1770971723389,0.580416,1947.1,1946.6,0.60976776]
[1770971723889,0.580416,1947.1,1946.6,0.61449153]
[1770971724390,0.580416,1947.1,1946.7,0.60976776]
[1770971725587,0.580416,1947.1,1946.6,0.61449153]
[1770971725787,0.57492618,1947.0,1946.6,0.00472377]
[1770971726290,0.57492618,1947.0,1946.6,0.61449153]
[1770971726483,0.57492618,1947.0,1946.6,0.00472377]
[1770971726790,0.57492618,1946.8,1946.4,0.60976776]
[1770971727385,0.57492618,1946.8,1946.1,0.60976776]
[1770971727886,0.57492618,1946.8,1946.1,0.6145553]
[1770971728391,0.57492618,1947.0,1946.1,0.6145553]
[1770971728591,0.57492618,1947.0,1946.3,0.60976776]
[1770971729186,0.580416,1947.1,1946.3,0.60976776]
[1770971730990,0.00548982,1947.1,1946.3,2.89209541]
[1770971731288,0.00548982,1947.1,1946.4,0.58493923]
[1770971734791,0.00548982,1947.1,1946.7,0.59221713]
[1770971734992,0.60829215,1947.4,1946.7,0.59221713]
[1770971735290,4.265,1948.1,1946.7,0.59221713]
[1770971735291,0.60861875,1948.0,1946.7,0.59221713]
[1770971735992,0.61274266,1948.0,1946.7,0.59221713]
[1770971738893,0.61274266,1948.0,1947.0,0.59221713]
[1770971745196,0.61274266,1948.0,1947.2,0.59221713]
[1770971751597,1e-08,1948.0,1947.5,0.59221713]
[1770971751798,0.60861875,1948.3,1947.5,0.59221713]
[1770971751990,0.60861875,1948.3,1947.6,0.59221713]
[1770971752901,0.6148179,1948.3,1947.6,0.59612516]
[1770971753205,0.60861875,1948.5,1947.8,0.59221713]
[1770971753802,0.25673,1949.0,1947.8,0.59221713]
[1770971754004,0.60861875,1948.9,1947.8,0.59221713]
[1770971754198,0.61421565,1948.9,1947.8,0.59221713]
[1770971755408,0.61421565,1948.9,1948.1,0.59221713]
[1770971762713,0.61421565,1948.9,1947.7,2.53921765]
[1770971762714,0.61421565,1948.9,1948.0,0.55149471]
[1770971762918,0.56896517,1948.8,1948.0,0.55149471]
[1770971763916,0.0055969,1948.9,1948.1,0.55149471]
[1770971764117,0.57456207,1948.9,1948.1,0.55149471]
[1770971769924,0.56896517,1948.8,1948.1,0.55149471]
[1770971770124,0.56896517,1948.8,1947.8,0.55149471]
[1770971774422,0.56896517,1948.6,1947.8,0.55149471]
[1770971774628,0.56896517,1948.8,1947.8,0.55149471]
[1770971775419,0.0055969,1948.9,1948.2,0.55149471]
[1770971775624,0.57456207,1948.9,1948.2,0.55149471]
[1770971785142,0.57456207,1948.9,1948.0,0.55149471]
[1770971788443,0.56896517,1948.8,1947.7,0.55149471]
[1770971788841,0.2623469,1948.9,1947.7,0.55149471]
[1770971788842,0.56896517,1948.6,1947.7,0.55149471]
[1770971789344,0.56896517,1948.4,1947.7,0.55149471]
[1770971789740,1.44682021,1948.3,1947.6,0.00390803]
[1770971789942,0.56896517,1948.2,1947.4,0.55149471]
[1770971791047,0.56896517,1948.2,1947.4,0.55807648]
[1770971803857,0.56896517,1948.2,1947.4,0.00658177]
[1770971804055,0.56896517,1948.2,1947.4,0.55978179]
[1770971807057,0.56896517,1948.2,1947.4,0.00658177]
[1770971807456,0.5524837,1948.0,1947.4,0.00658177]
[1770971807662,0.5524837,1948.0,1947.1,1.89675835]
[1770971808158,0.5524837,1948.0,1946.9,0.55320002]
[1770971808658,0.5524837,1948.0,1946.9,0.55717357]
[1770971811460,0.5524837,1947.8,1946.9,0.55717357]
[1770971815157,0.5524837,1948.2,1946.9,0.55717357]
[1770971815363,0.5524837,1948.2,1947.3,0.55320002]
[1770971818566,0.5524837,1948.6,1947.4,0.55320002]
[1770971818759,0.5524837,1948.6,1947.6,0.55320002]
[1770971822464,0.59820346,1948.8,1947.6,0.55320002]
[1770971822654,0.59820346,1948.8,1947.8,0.56889222]
[1770971826064,0.59820346,1948.8,1948.0,0.56889222]
[1770971828466,0.0055969,1948.9,1948.0,0.56889222]
[1770971828768,0.60380036,1948.9,1948.3,0.56889222]
[1770971828967,0.60380036,1948.9,1948.3,0.57262769]
[1770971832875,0.60380036,1948.9,1948.6,0.56889222]
[1770971833072,0.59820346,1949.2,1948.6,2.01466957]
[1770971833373,0.59820346,1949.3,1948.8,2.01466957]
[1770971833565,0.25138027,1949.6,1948.8,2.01466957]
[1770971833566,0.84705373,1949.6,1949.2,2.01466957]
[1770971833767,0.59820346,1950.9,1949.6,0.56889222]
[1770971833973,0.59820346,1950.5,1949.8,2.01466957]
[1770971834268,0.59820346,1950.4,1949.8,0.57521263]
[1770971834473,0.59820346,1950.4,1949.8,2.02098998]
[1770971834868,0.59820346,1950.4,1949.8,0.57521263]
[1770971835268,0.59820346,1950.6,1949.8,0.57521263]
[1770971836175,0.60186679,1950.6,1949.8,0.57521263]
[1770971837473,2.8759883,1950.6,1949.8,0.00632041]
[1770971837677,0.59820346,1950.5,1949.3,0.56889222]
[1770971838575,0.59820346,1950.5,1949.3,0.57331755]
[1770971839379,0.59820346,1950.3,1949.3,0.57331755]
[1770971840174,0.59820346,1950.3,1949.5,0.56889222]
[1770971841673,0.00366333,1950.6,1949.7,2.27412151]
[1770971841873,0.60186679,1950.6,1949.8,0.56889222]
[1770971847482,0.00366333,1950.6,1949.8,0.56889222]
[1770971849083,0.60186679,1950.6,1949.8,0.56889222]
[1770971852084,0.54190796,1950.4,1949.4,0.57757551]
[1770971852581,0.54190796,1950.4,1949.7,0.57757551]
[1770971852778,0.54557129,1950.6,1949.7,0.57757551]
[1770971853574,2.81602947,1950.4,1949.3,0.58200084]
[1770971853778,0.54190796,1950.1,1949.3,0.58200084]
[1770971855376,0.54190796,1950.1,1949.3,0.00442533]
[1770971856281,0.55194563,1949.9,1949.3,0.00442533]
[1770971856586,0.55194563,1949.9,1949.0,0.55512159]
[1770971857385,0.55194563,1949.9,1949.0,0.55936093]
[1770971859085,0.55194563,1949.9,1949.0,0.00423934]
[1770971859282,0.80856563,1949.8,1949.0,0.00423934]
[1770971859488,0.80856563,1949.8,1948.3,0.25682]
[1770971859489,0.55194563,1949.5,1948.7,0.55512159]
[1770971859691,0.55194563,1949.5,1948.4,0.55512159]
[1770971860082,0.55194563,1949.3,1948.4,0.55512159]
[1770971860478,0.55194563,1949.3,1948.4,0.55908961]
[1770971863188,2.82606714,1949.3,1948.4,0.55908961]
[1770971863396,0.55194563,1949.2,1948.4,0.55908961]
[1770971863591,0.55610821,1949.2,1948.4,0.55908961]
[1770971864286,0.55610821,1949.2,1948.4,0.00396802]
[1770971864794,0.55610821,1949.2,1948.4,0.55908961]
[1770971866194,0.55610821,1949.2,1948.4,0.00396802]
[1770971868801,0.55610821,1949.2,1948.4,0.55908961]
[1770971870987,0.55610821,1949.2,1947.9,0.55512159]
[1770971871196,0.55194563,1948.9,1947.9,0.55512159]
[1770971872197,0.55194563,1948.8,1947.9,0.56008309]
[1770971872499,0.55194563,1948.6,1947.9,0.0049615]
[1770971873203,0.55194563,1948.3,1947.6,0.55512159]
[1770971874201,0.55194563,1948.3,1947.6,0.56021342]
[1770971876600,2.82606714,1948.3,1947.6,0.00509183]
[1770971877000,0.55194563,1948.2,1947.6,0.00509183]
[1770971878399,0.55194563,1948.2,1947.6,0.56021342]
[1770971879608,0.55194563,1948.2,1947.6,0.00509183]
[1770971879896,0.55194563,1948.2,1947.5,0.55512159]
[1770971879897,0.25685,1948.1,1947.3,0.55512159]
[1770971880097,0.55194563,1948.0,1947.3,0.55512159]
[1770971881206,0.55194563,1948.0,1947.3,0.56026707]
[1770971882606,0.5427762,1948.2,1947.3,0.56026707]
[1770971884108,0.5427762,1948.1,1947.3,0.56026707]
[1770971884400,0.5427762,1948.0,1947.3,0.56026707]
[1770971888306,0.2569,1947.7,1947.1,0.57742288]
[1770971888499,0.5427762,1947.6,1947.1,1e-08]
[1770971888706,0.5427762,1947.6,1946.5,0.25705]
[1770971888906,0.5427762,1947.6,1946.6,40.8]
[1770971889505,0.54932428,1947.6,1946.6,40.80639224]
[1770971890004,0.54932428,1947.6,1946.6,0.00639224]
[1770971892316,0.00654808,1947.6,1946.6,0.00639224]
[1770971892614,0.54932428,1947.6,1946.6,0.00639224]
[1770971895219,0.5427762,1947.4,1946.6,0.00639224]
[1770971896819,0.54932428,1947.6,1946.6,0.00639224]
[1770971897721,0.00654808,1947.6,1946.6,2.28681785]
[1770971897922,0.00654808,1947.6,1946.7,7.42403]
[1770971899022,0.54932428,1947.6,1946.7,7.42403]
[1770971899920,0.00654808,1947.6,1946.7,7.42403]
[1770971900219,0.5427762,1948.0,1946.9,2.28042561]
[1770971901220,0.54777289,1948.0,1946.9,2.28042561]
[1770971901418,0.54777289,1948.0,1946.7,9.70445561]
[1770971905719,0.54777289,1948.0,1946.7,7.42403]
[1770971907126,0.54777289,1948.0,1946.7,9.70445561]
[1770971912521,0.54777289,1948.0,1946.7,7.42403]
[1770971914631,0.54777289,1948.0,1946.7,0.25703]
[1770971915729,0.5407771,1947.9,1946.7,0.25703]
[1770971916630,0.5407771,1947.7,1946.8,0.55019147]
[1770971917130,0.00499669,1948.0,1946.8,0.55019147]
[1770971917430,0.5407771,1947.9,1946.8,0.55019147]
[1770971919837,0.5407771,1947.9,1947.0,0.55019147]
[1770971920633,0.54577379,1948.0,1947.2,0.55019147]
[1770971922441,0.54577379,1948.0,1947.4,0.55019147]
[1770971924239,0.54577379,1948.0,1947.0,0.55019147]
[1770971928150,0.5407771,1947.9,1947.0,0.55019147]
[1770971930646,0.26186669,1948.0,1946.6,0.55658371]
[1770971930647,0.5407771,1947.7,1946.6,0.55658371]
[1770971931439,0.00499669,1948.0,1946.8,0.55019147]
[1770971931746,0.5407771,1947.9,1946.8,0.55019147]
[1770971933250,0.5407771,1947.8,1946.8,0.55019147]
[1770971933443,0.5407771,1947.6,1946.8,0.55019147]
[1770971935744,0.25693,1947.5,1946.8,0.55019147]
[1770971936049,0.5407771,1947.4,1946.6,0.55658371]
[1770971937248,0.5407771,1947.4,1946.6,0.00639224]
[1770971939154,0.25695,1947.3,1946.6,0.00639224]
[1770971939351,0.5407771,1947.2,1946.6,0.00639224]
[1770971939551,0.5407771,1947.2,1946.6,0.55658371]
[1770971939852,0.5407771,1947.2,1946.6,0.00639224]
[1770971940949,0.5407771,1947.2,1946.3,0.56527787]
[1770971941953,0.5407771,1947.2,1946.3,0.56982483]
[1770971942750,0.58191431,1947.0,1946.3,0.56982483]
[1770971942950,0.58191431,1946.8,1946.3,0.00454696]
[1770971943147,0.58191431,1946.8,1946.1,0.56527787]
[1770971944255,0.58191431,1946.8,1946.1,0.56957072]
[1770971946456,0.58191431,1946.8,1945.8,0.56527787]
[1770971946969,0.58191431,1946.6,1945.8,0.56527787]
[1770971947154,0.58191431,1946.9,1945.8,0.56527787]
[1770971947358,0.58191431,1946.9,1945.9,0.56527787]
[1770971947658,0.5882607,1946.9,1945.9,0.57143322]
[1770971948361,0.5882607,1946.9,1946.2,0.56527787]
[1770971948362,0.00634639,1946.9,1946.2,0.56527787]
[1770971948962,0.5882607,1946.9,1946.2,0.56527787]
[1770971949561,0.00634639,1946.9,1946.2,0.56527787]
[1770971950660,0.5882607,1946.9,1946.2,0.56527787]
[1770971951563,0.58191431,1946.8,1946.0,0.56527787]
[1770971952462,0.58191431,1946.8,1945.9,0.00615535]
[1770971952662,0.58191431,1946.8,1945.9,0.57143322]
[1770971952862,0.58191431,1946.6,1945.9,0.57143322]
[1770971957365,0.58191431,1946.6,1945.9,0.00615535]
[1770971959571,0.58191431,1946.6,1945.9,0.57143322]
[1770971962275,0.58191431,1946.6,1945.9,0.00615535]
[1770971962976,0.58191431,1946.6,1945.9,0.57143322]
[1770971965679,0.58191431,1946.6,1946.1,0.56527787]
[1770971968476,0.58191431,1946.6,1946.2,0.56527787]
[1770971969179,0.58191431,1946.6,1946.1,3.60655062]
[1770971969683,0.58191431,1946.6,1946.1,3.04127275]
[1770971969878,0.58191431,1946.6,1946.0,3.04127275]
[1770971970484,0.58191431,1946.6,1946.0,3.59306938]
[1770971970784,0.58191431,1946.6,1946.1,0.55179663]
[1770971971687,0.58191431,1946.6,1946.1,3.59306938]
[1770971972081,0.58191431,1946.6,1946.2,0.55179663]
[1770971972483,0.58191431,1946.6,1946.1,3.59306938]
[1770971972990,0.58191431,1946.6,1946.1,0.55179663]
[1770971974185,0.58191431,1946.6,1946.0,3.04127275]
[1770971974389,0.58191431,1946.6,1946.0,3.59306938]
[1770971974590,0.58191431,1946.6,1946.1,0.55179663]
[1770971974785,0.58191431,1946.6,1946.1,3.59306938]
[1770971974985,0.58191431,1946.6,1946.1,0.55179663]
[1770971978094,0.58191431,1946.6,1946.1,3.59306938]
[1770971979796,0.58191431,1946.6,1946.2,0.58728379]
[1770971979997,0.55588233,1946.7,1946.2,0.58728379]
[1770971980200,0.55588233,1946.7,1946.3,0.58728379]
[1770971980594,0.55588233,1946.7,1946.3,0.08728379]
[1770971980794,0.00634639,1946.9,1946.3,0.08728379]
[1770971980795,0.00634639,1946.9,1946.6,0.41067746]
[1770971981294,9.547,1947.0,1946.6,0.41067746]
[1770971981503,7.06859098,1947.0,1946.7,0.58728379]
[1770971982401,7.07517086,1947.0,1946.7,0.58728379]
[1770971983898,0.55588233,1946.9,1946.6,3.04127275]
[1770971984102,0.55588233,1946.9,1946.5,8.19046566]
[1770971984304,0.55588233,1946.9,1946.6,0.58728379]
[1770971984803,0.55588233,1946.9,1946.5,8.19046566]
[1770971985001,0.55588233,1946.9,1946.4,3.04127275]
[1770971985306,0.55588233,1946.9,1946.4,3.62855654]
[1770971985804,0.55588233,1946.9,1946.3,3.04127275]
[1770971986003,0.55588233,1946.9,1946.2,8.19046566]
[1770971986203,0.55588233,1946.9,1946.2,3.62855654]
[1770971986404,0.55588233,1946.9,1946.3,0.58728379]
[1770971987199,0.55588233,1946.9,1946.2,3.62855654]
[1770971988402,0.55588233,1946.9,1946.2,0.58728379]
[1770971989107,0.55588233,1946.9,1946.3,0.58728379]
[1770971990405,0.56246221,1947.0,1946.5,0.58728379]
[1770971997106,0.56246221,1947.0,1946.4,7.60318187]
[1770971997313,0.56246221,1947.0,1946.3,3.04127275]
[1770971997606,0.55588233,1946.9,1946.2,3.62855654]
[1770971997813,0.55588233,1946.9,1946.2,0.58728379]
[1770972000515,0.55588233,1946.9,1946.3,0.6345651]
[1770972001006,0.55588233,1946.9,1946.3,3.67583785]
[1770972001208,9.72657988,1947.0,1946.4,0.6345651]
[1770972001711,9.72657988,1947.0,1946.6,0.6345651]
[1770972001712,0.00657988,1947.0,1946.6,0.6345651]
[1770972001907,0.59699765,1947.4,1946.8,0.6345651]
[1770972002109,10.32299765,1947.5,1946.9,0.6345651]
[1770972002308,9.726,1947.5,1947.0,0.6345651]
[1770972002513,10.32299765,1947.5,1947.0,0.6345651]
[1770972002816,10.32843249,1947.5,1947.0,0.6345651]
[1770972004318,0.59699765,1948.0,1947.2,0.6345651]
[1770972004616,9.76,1948.2,1947.6,0.6345651]
[1770972004816,10.35699765,1948.2,1947.6,0.6345651]
[1770972005313,10.3607028,1948.2,1947.6,0.63898206]
[1770972005518,0.00370515,1948.2,1947.6,0.63898206]
[1770972005912,9.77,1948.5,1947.7,0.6345651]
[1770972006113,10.36699765,1948.5,1947.7,0.6345651]
[1770972006607,0.59699765,1948.4,1947.7,0.6345651]
[1770972007005,0.60359642,1948.4,1947.7,0.6345651]
[1770972023725,0.86041642,1948.4,1947.6,0.00441696]
[1770972023929,0.59699765,1948.3,1947.6,0.00441696]
[1770972024532,0.59699765,1948.3,1947.6,0.63898206]
[1770972029351,0.59699765,1948.3,1947.7,0.6345651]
[1770972031152,0.00659877,1948.4,1947.7,0.6345651]
[1770972031153,0.00659877,1948.4,1947.7,3.65961697]
[1770972031337,0.00659877,1948.4,1947.9,0.74005108]
[1770972031538,0.75298989,1948.4,1947.9,0.74005108]
[1770972032546,0.75298989,1948.4,1947.7,3.76510295]
[1770972032746,0.75298989,1948.4,1947.7,0.74005108]
[1770972033350,0.75298989,1948.4,1947.7,3.76510295]
[1770972034352,0.75298989,1948.4,1947.7,3.02505187]
[1770972034552,3.05393255,1948.1,1947.3,4.56190912]
[1770972034753,0.00680648,1948.0,1947.3,5.35237738]
[1770972035046,0.00680648,1948.0,1947.3,0.79046826]
[1770972035646,0.00680648,1948.0,1947.3,0.79514095]
[1770972037148,0.00680648,1948.0,1947.3,5.35705007]
[1770972037454,0.00680648,1948.0,1947.4,0.79155911]
[1770972037756,13.01178255,1948.2,1947.4,0.79155911]
[1770972037955,0.02870042,1948.1,1947.4,0.79155911]
[1770972047657,0.02870042,1948.1,1947.3,0.00467269]
[1770972047658,0.00196951,1947.9,1947.3,0.00467269]
[1770972047960,0.00196951,1947.9,1947.3,0.28806967]
[1770972048358,3.80767399,1948.0,1947.3,0.28806967]
[1770972048762,0.4925829,1947.9,1947.3,0.29382119]
[1770972049755,0.4925829,1947.9,1947.3,0.00575152]
[1770972049960,0.4925829,1947.9,1947.3,0.7765386]
[1770972053064,0.4925829,1947.9,1947.3,0.2765386]
[1770972054060,0.4925829,1947.9,1947.3,0.2831608]
[1770972058460,0.4925829,1947.9,1947.3,0.0066222]
[1770972058660,0.4925829,1947.9,1947.3,0.77740928]
[1770972060671,0.4925829,1947.9,1947.3,0.27750928]
[1770972061669,0.4925829,1947.9,1947.3,0.28134696]
[1770972061872,3.31079255,1948.0,1947.3,0.28134696]
[1770972061873,3.05393255,1948.0,1947.3,0.28134696]
[1770972062071,9.946,1948.1,1947.3,0.28134696]
[1770972062373,10.68711327,1948.1,1947.4,0.71597724]
[1770972062567,0.74111327,1948.0,1947.4,0.71597724]
[1770972063874,10.68711327,1948.1,1947.4,0.71597724]
[1770972064977,9.98,1948.3,1947.6,0.71597724]
[1770972065979,10.72111327,1948.3,1947.6,0.71597724]
[1770972066374,0.74111327,1948.2,1947.6,0.71597724]
[1770972066580,0.74111327,1948.2,1947.5,0.71597724]
[1770972067178,0.74111327,1948.2,1947.4,5.27788636]
[1770972067380,0.74111327,1948.2,1947.4,0.71597724]
[1770972067678,0.74111327,1948.1,1947.3,0.71981492]
[1770972068273,3.79504582,1947.9,1947.3,0.00383768]
[1770972068572,0.74111327,1947.7,1947.3,0.00383768]
[1770972068882,0.74111327,1947.7,1947.1,0.71597724]
[1770972069679,0.74111327,1947.7,1947.1,0.71987446]
[1770972070273,10.016,1947.8,1947.1,0.71987446]
[1770972070477,10.78811327,1947.8,1947.1,0.71987446]
[1770972070678,0.74111327,1947.7,1947.1,0.71987446]
[1770972074076,3.79504582,1948.1,1947.2,0.71597724]
[1770972074271,10.82711327,1948.0,1947.3,0.71597724]